fUSD/lending_fUSD_20250809
["ID","MTS","AMOUNT","RATE_DAILY","PERIOD"]
[378177358,1754766633826,-1321.0,0.00020211,2]
[378177359,1754766633835,-381.85716363,0.00020222,2]
[378177360,1754766633845,-253.04518963,0.00020241,2]
[378177361,1754766633855,-296.78139524,0.00020333,2]
[378177362,1754766633864,-305.9619995,0.0002037,2]
[378177363,1754766633873,-340.51760086,0.00020425,2]
[378177364,1754766633883,-308.0,0.00020495,15]
[378177365,1754766633893,-384.25380647,0.00020517,2]
[378177366,1754766633902,-300.0,0.0002057,2]
[378177367,1754766633911,-300.0,0.0002057,2]
[378177368,1754766633921,-250.0,0.0002057,2]
[378177369,1754766633930,-427.99001209,0.00020608,2]
[378177370,1754766633940,-696.86,0.00020649,2]
[378177371,1754766633951,-183.64,0.00020678,2]
[378177372,1754766633960,-471.7262177,0.000207,2]
[378177373,1754766633970,-515.46242332,0.00020792,2]
[378177374,1754766633979,-168.154,0.00020797,2]
[378177375,1754766633990,-2219.888,0.00020797,2]
[378177376,1754766633999,-2105.5716,0.000208,2]
[378177377,1754766634008,-559.19862893,0.00020883,2]
[378177378,1754766634018,-150.0,0.00020892,2]
[378177379,1754766634028,-150.0,0.00020892,2]
[378177380,1754766634037,-200.0,0.00020892,2]
[378177381,1754766634047,-150.0,0.00020892,2]
[378177382,1754766634057,-150.0,0.00020892,2]
[378177383,1754766634066,-150.0,0.00020892,2]
[378177384,1754766634076,-150.0,0.00020892,2]
[378177385,1754766634086,-150.0,0.00020892,2]
[378177386,1754766634095,-150.0,0.00020892,2]
[378177387,1754766634105,-178.64674276,0.00020892,2]
[378177388,1754766634115,-1899.56669421,0.00020898,2]
[378177389,1754766634125,-154.76924078,0.00020898,2]
[378177390,1754766634134,-1899.56669418,0.00020898,2]
[378177391,1754766634143,-1899.56669418,0.00020898,2]
[378177392,1754766634153,-1899.56669418,0.00020899,2]
[378177393,1754766634164,-1899.56669418,0.00020899,2]
[378177394,1754766634174,-1899.56669418,0.00020899,2]
[378177395,1754766634183,-1899.56669418,0.00020899,2]
[378177396,1754766634193,-1899.56669418,0.000209,2]
[378177397,1754766634202,-1899.56669418,0.000209,2]
[378177398,1754766634212,-5800.0,0.000209,2]
[378177399,1754766634221,-14632.6708951,0.000209,2]
[378177400,1754766634234,-1049.55250262,0.000209,2]
[378177401,1754766634246,-310.07538915,0.000209,2]
[378177402,1754766634293,-805.90426031,0.000209,2]
[378177403,1754766634305,-455.8107763,0.000209,2]
[378177404,1754766634317,-7700.83247652,0.000209,2]
[378177405,1754766634326,-1468.80552348,0.000209,2]
[378177406,1754766634341,-2164.03345872,0.000209,2]
[378177407,1754766638149,-219.22570312,0.00018715,2]
[378177408,1754766638158,-888.0,0.00019696,3]
[378177409,1754766638168,-430.29429692,0.000209,2]
[378177410,1754766638420,-1155.788706,0.000209,2]
[378177411,1754766638444,-343.23831488,0.000209,2]
[378177412,1754766638453,-1302.27449103,0.000209,2]
[378177413,1754766638463,-975.05483773,0.000209,2]
[378177414,1754766638474,-24.94516227,0.000209,2]
[378177415,1754766638484,-200.0,0.000209,2]
[378177416,1754766638493,-150.0,0.000209,2]
[378177417,1754766638502,-150.0,0.000209,2]
[378177418,1754766638512,-150.0,0.000209,2]
[378177419,1754766638521,-200.0,0.000209,2]
[378177420,1754766638530,-1436.21483773,0.000209,2]
[378177421,1754766638543,-5664.0,0.000209,2]
[378177422,1754766638563,-4386.66118994,0.000209,2]
[378177423,1754766638573,-160.21559223,0.000209,2]
[378177424,1754766638582,-1497.41776014,0.000209,2]
[378177428,1754766638611,-3770.91506886,0.000209,2]
[378177430,1754766638621,-1899.56669418,0.000209,2]
[378177432,1754766638631,-5000.0,0.000209,2]
[378177433,1754766638641,-4109.4163093,0.000209,2]
[378177435,1754766638652,-1213.0,0.00020914,2]
[378177437,1754766638661,-153.0,0.00020914,2]
[378177439,1754766638670,-153.0,0.00020914,2]
[378177441,1754766638680,-153.0,0.00020914,2]
[378177443,1754766638690,-380.51480873,0.00020973,2]
[378177445,1754766638699,-171.18711896,0.00020973,2]
[378177448,1754766638711,-328.81288104,0.00020973,2]
[378177450,1754766638720,-500.0,0.00020973,2]
[378177452,1754766638729,-500.0,0.00020973,2]
[378177454,1754766638739,-500.0,0.00020973,2]
[378177456,1754766638748,-500.0,0.00020973,2]
[378177458,1754766638758,-602.93483454,0.00020975,2]
[378177460,1754766638767,-150.0,0.00020986,4]
[378177462,1754766638776,-194.6130406,0.0002099,2]
[378177464,1754766638785,-604.23,0.00020997,2]
[378177466,1754766638795,-1210.832604,0.00020998,2]
[378177468,1754766638805,-1210.832604,0.00020998,2]
[378177470,1754766638815,-941.2417076,0.00020998,2]
[378177471,1754766638824,-795.09508347,0.00020998,2]
[378177475,1754766638847,-888.0,0.00020196,3]
[378177477,1754766638856,-14404.25049163,0.00020998,2]
[378177478,1754766638865,-21796.3104052,0.00020998,2]
[378177480,1754766638876,-145311.4580957,0.00020998,2]
[378177483,1754766638887,-313.93125095,0.00020998,2]
[378177486,1754766638911,-728.42947155,0.00020998,2]
[378177488,1754766638921,-256.22461571,0.00020998,2]
[378177618,1754766640268,-219.22570312,0.00018744,2]
[378177620,1754766640278,-500.0,0.00020899,2]
[378177621,1754766640287,-134.64352263,0.00020899,2]
[378177623,1754766640299,-365.35647737,0.00020899,2]
[378177626,1754766640309,-325.67293895,0.00020899,2]
[378177639,1754766640427,-4.22817342,0.00020899,2]
[378177641,1754766640436,-495.77182658,0.00020998,2]
[378177643,1754766640450,-549.21830681,0.00020998,2]
[378177645,1754766640460,-300.0,0.00020999,2]
[378177647,1754766640470,-1000.0,0.00020999,2]
[378177649,1754766640480,-232.90586149,0.00020999,2]
[378177651,1754766640493,-16965.5030495,0.00021,2]
[378177653,1754766640503,-2206.9569799,0.00021,2]
[378177655,1754766640513,-8927.64352889,0.00021,2]
[378177660,1754766640556,-2952.99857713,0.00021,2]
[378177908,1754766643224,-1821.82014999,0.00021,2]
[378177911,1754766643235,-3083.69385007,0.00021,2]
[378177932,1754766643434,-74361.87415281,0.00021,2]
[378177934,1754766643445,-79844.32061266,0.00021,2]
[378177945,1754766643542,-4146.95912565,0.00021,2]
[378178198,1754766646243,-219.22570312,0.00018773,2]
[378178200,1754766646252,-209.8183164,0.00021,2]
[378178202,1754766646296,-402.58305041,0.00021,2]
[378178222,1754766646554,-14133.0861919,0.00021,2]
[378178227,1754766646594,-386.05049804,0.00021,2]
[378178230,1754766646622,-888.0,0.00020999,3]
[378178232,1754766646632,-6156.0,0.00021,2]
[378178234,1754766646643,-1108.46503154,0.00021,2]
[378178236,1754766646658,-958.020024,0.00021,2]
[378178238,1754766646670,-1204.5,0.00021,2]
[378178344,1754766651086,5511.0,0.000152,5]
[378178361,1754766765684,512.0,0.00017918,2]
[378178395,1754767026040,254.0,0.00024,120]
[378178396,1754767030664,150.0,0.00018,2]
[378178420,1754767323924,154.28456035,0.0002,10]
[378178428,1754767334492,152.42,0.00013699,2]
[378178445,1754767503675,183.45,0.00015237,2]
[378178448,1754767525515,1655.83309519,0.000175,2]
[378178462,1754767625735,1517.64,0.000153,2]
[378178463,1754767629404,1431.80264681,0.00015,2]
[378178464,1754767629428,4797.28785394,0.00015,2]
[378178465,1754767632902,3607.89788048,0.00015,2]
[378178466,1754767632923,2001.19117163,0.00015,2]
[378178467,1754767635514,205.0,9.8e-05,2]
[378178468,1754767639294,5235.7132847,0.0001305,2]
[378178474,1754767653212,399.56461774,0.00016,2]
[378178475,1754767657290,7158.53092593,0.00018,2]
[378178476,1754767657312,13226.91878171,0.00018,2]
[378178486,1754767706088,-198.52,0.00018009,2]
[378178488,1754767709576,-200.0,0.00018009,2]
[378178489,1754767711042,-240.232003,0.00018009,2]
[378178501,1754767718017,1773.08121829,0.000151,2]
[378178502,1754767718039,2838.56878071,0.000151,2]
[378178537,1754767816344,513.0,0.00017724,2]
[378178544,1754767831478,-1026.88199114,0.000181,2]
[378178545,1754767831533,-521.5473785,0.000181,2]
[378178546,1754767831544,-193.393918,0.000181,2]
[378178547,1754767831554,-1023.65,0.00018206,2]
[378178548,1754767831564,-237.51,0.00018291,2]
[378178549,1754767831573,-150.0,0.000185,2]
[378178550,1754767831582,-311.44488201,0.0001857,2]
[378178551,1754767831641,-1600.1019747,0.0001857,2]
[378178552,1754767831651,-1200.0,0.0001867,2]
[378178553,1754767831660,-17925.9649831,0.00018671,2]
[378178554,1754767831671,-5710.0,0.00018671,2]
[378178555,1754767831700,-2935.1250169,0.00018671,2]
[378178556,1754767831709,-4174.48,0.00018687,2]
[378178557,1754767831718,-180.18,0.00018706,2]
[378178558,1754767831728,-1000.0,0.00018757,2]
[378178559,1754767831738,-166.04316345,0.000189,2]
[378178560,1754767831747,-985.48736581,0.000189,2]
[378178561,1754767831757,-183.07628818,0.000189,2]
[378178562,1754767831767,-500.0,0.00018904,2]
[378178563,1754767831776,-500.0,0.00018973,2]
[378178564,1754767831785,-282.47333697,0.00018973,2]
[378178565,1754767831794,-500.0,0.00018973,2]
[378178566,1754767831804,-2071.64600424,0.0001899,2]
[378178567,1754767831815,-2070.44315566,0.0001899,2]
[378178568,1754767831825,-850.0,0.00018998,2]
[378178569,1754767831834,-234.98534279,0.00018999,2]
[378178570,1754767831844,-163.03410304,0.00018999,2]
[378178571,1754767831854,-500.0,0.00018999,2]
[378178572,1754767831863,-451.69069439,0.00018999,2]
[378178573,1754767831872,-188.89011813,0.00018999,2]
[378178574,1754767831882,-300.0,0.00018999,2]
[378178575,1754767831890,-41162.85326456,0.00019,2]
[378178576,1754767831900,-6003.07521402,0.00019,2]
[378178577,1754767831910,-1585.62269793,0.00019,2]
[378178579,1754767831920,-52585.27206606,0.00019,2]
[378178583,1754767831932,-5106.22269341,0.00019,2]
[378178586,1754767831943,-28291.34225363,0.00019,2]
[378178588,1754767831954,-14182.12284281,0.00019,2]
[378178591,1754767831964,-2304.11742201,0.00019,2]
[378178595,1754767831998,-206888.00761522,0.00019,2]
[378178597,1754767832013,-259.90216104,0.00019,2]
[378178606,1754767832091,-545.33174619,0.00019,2]
[378178631,1754767837286,-2723.6226909,0.00019,2]
[378178632,1754767837407,-16342.4261,0.00019,2]
[378178633,1754767837455,-1785.66782161,0.00019,2]
[378178634,1754767837467,-920.0,0.00019,2]
[378178635,1754767837487,-1929.2989339,0.00019,2]
[378178636,1754767837499,-469.65613326,0.00019,2]
[378178637,1754767837546,-150.0,0.0001876,2]
[378178638,1754767837557,-64979.82112017,0.00019,2]
[378178814,1754767839412,-730.65804482,0.00019,2]
[378178816,1754767839424,-350.65249995,0.00019,2]
[378178822,1754767839467,-346762.04624584,0.00019,2]
[378178824,1754767839477,-384224.10020198,0.00019,2]
[378178826,1754767839488,-490.0,0.00019,2]
[378178836,1754767839577,-2924.25,0.00019,2]
[378178838,1754767839589,-5700.4665306,0.00019,2]
[378178840,1754767839600,-359.73,0.00019,2]
[378178842,1754767839612,-42700.01222826,0.00019,2]
[378178845,1754767839623,-3038.53005,0.00019,2]
[378178903,1754767840197,-8516.99999996,0.00019,2]
[378178907,1754767840224,-152140.24852935,0.00019,2]
[378179145,1754767842705,-159967.17558926,0.00019,2]
[378179146,1754767842715,-35536.13842702,0.00019,2]
[378179147,1754767842725,-985.48736577,0.00019122,2]
[378179148,1754767842735,-500.0,0.00019174,2]
[378179149,1754767842745,-1030.86,0.00019178,2]
[378179150,1754767842754,-237.51,0.00019206,2]
[378179152,1754767842763,-696.73,0.0001921,2]
[378179153,1754767842772,-200.0,0.00019242,2]
[378179154,1754767842782,-150.0,0.0001932,2]
[378179156,1754767842791,-985.48736577,0.00019344,2]
[378179157,1754767842801,-254.91506938,0.00019408,2]
[378179159,1754767842812,-500.0,0.00019444,2]
[378179162,1754767842822,-298.97446409,0.00019496,2]
[378179164,1754767842831,-200.0,0.000195,2]
[378179166,1754767842841,-331.0,0.00019513,2]
[378179168,1754767842851,-500.0,0.00019521,2]
[378179170,1754767842860,-985.48736577,0.00019567,2]
[378179172,1754767842870,-343.0338588,0.00019584,2]
[378179174,1754767842879,-387.09325351,0.00019672,2]
[378179176,1754767842889,-170.0,0.00019677,7]
[378179177,1754767842898,-150.0,0.0001968,2]
[378179179,1754767842908,-250.0,0.00019707,2]
[378179181,1754767842919,-199.0,0.00019714,2]
[378179183,1754767842929,-222.0,0.00019714,2]
[378179185,1754767842939,-500.0,0.00019714,2]
[378179187,1754767842948,-179.89,0.00019715,2]
[378179189,1754767842957,-431.15264822,0.00019759,2]
[378179191,1754767842968,-600.0,0.00019786,2]
[378179193,1754767842977,-417.9,0.00019786,2]
[378179195,1754767842986,-985.48736577,0.00019789,2]
[378179197,1754767842995,-513.0,0.00019837,4]
[378179199,1754767843004,-475.21204293,0.00019847,2]
[378179201,1754767843013,-795.91,0.00019863,2]
[378179203,1754767843023,-239.84119403,0.00019886,2]
[378179205,1754767843032,-469.6248,0.0001989,2]
[378179207,1754767843042,-2500.0,0.0001989,2]
[378179209,1754767843052,-166.04316345,0.000199,2]
[378179211,1754767843062,-183.07628816,0.000199,2]
[378179213,1754767843072,-250.0,0.0001991,2]
[378179215,1754767843081,-519.27143763,0.00019935,2]
[378179217,1754767843091,-1150.03139082,0.00019956,2]
[378179219,1754767843106,-500.0,0.00019978,2]
[378179221,1754767843120,-500.0,0.00019978,2]
[378179223,1754767843129,-500.0,0.00019978,2]
[378179225,1754767843139,-160.0,0.00019978,2]
[378179227,1754767843148,-600.0,0.00019978,2]
[378179229,1754767843157,-500.0,0.00019978,2]
[378179231,1754767843167,-500.0,0.00019978,2]
[378179234,1754767843178,-211.46150203,0.00019978,2]
[378179235,1754767843187,-1438.09495884,0.00019978,2]
[378179237,1754767843197,-500.0,0.00019978,2]
[378179240,1754767843207,-500.0,0.00019978,2]
[378179242,1754767843216,-500.0,0.00019978,2]
[378179244,1754767843225,-500.0,0.00019978,2]
[378179246,1754767843235,-500.0,0.00019978,2]
[378179248,1754767843245,-463.56267139,0.00019978,2]
[378179250,1754767843254,-298.19227517,0.00019978,2]
[378179252,1754767843264,-359.76179104,0.00019978,2]
[378179254,1754767843274,-500.0,0.00019984,2]
[378179256,1754767843283,-300.0,0.00019989,2]
[378179258,1754767843293,-294281.72,0.0001999,2]
[378179260,1754767843302,-4000.0,0.0002,4]
[378179262,1754767843312,-985.48736577,0.00020011,2]
[378179264,1754767843322,-563.33083234,0.00020023,2]
[378179266,1754767843331,-150.0,0.00020043,2]
[378179268,1754767843341,-1150.03139076,0.00020061,2]
[378179270,1754767843350,-607.39022705,0.00020111,2]
[378179272,1754767843359,-237.51,0.00020121,2]
[378179274,1754767843369,-1150.03139076,0.00020166,2]
[378179276,1754767843379,-651.44962176,0.00020199,2]
[378179278,1754767843389,-985.48736577,0.00020233,2]
[378179280,1754767843399,-500.0,0.00020254,2]
[378179282,1754767843409,-1150.03139076,0.00020271,2]
[378179284,1754767843418,-695.50901647,0.00020287,2]
[378179286,1754767843428,-171.12,0.00020305,2]
[378179288,1754767843438,-2360.1,0.00020312,2]
[378179291,1754767843448,-203.97466633,0.0002037,2]
[378179293,1754767843457,-739.56841118,0.00020375,2]
[378179295,1754767843469,-1150.03139076,0.00020376,2]
[378179297,1754767843479,-985.48736577,0.00020456,2]
[378179299,1754767843488,-1680.0,0.00020456,2]
[378179301,1754767843498,-783.62780588,0.00020463,2]
[378179303,1754767843507,-1150.03139076,0.0002048,2]
[378179305,1754767843517,-164.09,0.00020518,2]
[378179307,1754767843527,-500.0,0.00020524,2]
[378179309,1754767843536,-827.68720059,0.00020551,2]
[378179311,1754767843546,-1150.03139076,0.00020585,2]
[378179313,1754767843555,-1030.86,0.0002062,2]
[378179315,1754767843564,-871.7465953,0.00020638,2]
[378179317,1754767843574,-985.48736577,0.00020678,2]
[378179319,1754767843584,-1150.03139076,0.0002069,2]
[378179321,1754767843594,-915.80599001,0.00020726,2]
[378179323,1754767843604,-18819.89559267,0.0002079,2]
[378179325,1754767843614,-500.0,0.00020794,2]
[378179327,1754767843623,-1150.03139076,0.00020795,2]
[378179329,1754767843633,-959.86538472,0.00020814,2]
[378179331,1754767843643,-168.155,0.00020821,2]
[378179333,1754767843653,-1873.15,0.00020821,2]
[378179335,1754767843662,-591.0,0.00020821,2]
[378179337,1754767843672,-796.99,0.00020822,2]
[378179339,1754767843682,-1565.99484,0.0002086,2]
[378179341,1754767843692,-150.0,0.00020867,2]
[378179343,1754767843701,-150.0,0.0002087,2]
[378179345,1754767843711,-1000.0,0.00020898,2]
[378179347,1754767843720,-1801.46932347,0.000209,2]
[378179350,1754767843732,-264.8405,0.000209,2]
[378179352,1754767843742,-3031.4204,0.000209,2]
[378179354,1754767843751,-1143.51212998,0.000209,2]
[378179356,1754767843761,-5000.0,0.000209,2]
[378179358,1754767843771,-1150.03139076,0.000209,2]
[378179360,1754767843780,-150.0,0.000209,2]
[378179362,1754767843790,-150.0,0.000209,2]
[378179364,1754767843800,-150.0,0.000209,2]
[378179366,1754767843810,-150.0,0.000209,2]
[378179368,1754767843820,-150.31342015,0.000209,2]
[378179370,1754767843833,-150.0,0.000209,2]
[378179372,1754767843843,-166.04316345,0.000209,2]
[378179375,1754767843854,-150.0,0.000209,2]
[378179377,1754767843866,-200.0,0.000209,2]
[378179379,1754767843876,-150.0,0.000209,2]
[378179381,1754767843886,-150.0,0.000209,2]
[378179383,1754767843896,-200.0,0.000209,2]
[378179385,1754767843906,-150.0,0.000209,2]
[378179387,1754767843916,-150.0,0.000209,2]
[378179389,1754767843926,-500.0,0.000209,2]
[378179391,1754767843935,-183.07628816,0.000209,2]
[378179393,1754767843946,-985.48736577,0.000209,2]
[378179395,1754767843957,-1003.92477943,0.00020902,2]
[378179397,1754767843966,-591.0,0.00020903,2]
[378179398,1754767843976,-150.0,0.00020934,2]
[378179399,1754767843986,-500.0,0.00020973,2]
[378179400,1754767843996,-172.3856869,0.00020973,2]
[378179401,1754767844006,-500.51332326,0.00020973,2]
[378179402,1754767844016,-500.0,0.00020973,2]
[378179403,1754767844025,-500.0,0.00020973,2]
[378179404,1754767844035,-500.0,0.00020973,2]
[378179405,1754767844045,-500.0,0.00020973,2]
[378179406,1754767844055,-500.0,0.00020973,2]
[378179407,1754767844065,-500.0,0.00020973,2]
[378179408,1754767844074,-1565.99484,0.0002098,2]
[378179409,1754767844084,-1047.98417415,0.0002099,2]
[378179411,1754767844094,-277.3336436,0.00020998,2]
[378179412,1754767844107,-52979.918853,0.00020998,2]
[378179414,1754767844117,-5167.1272639,0.00020998,2]
[378179417,1754767844127,-964.6913016,0.00020998,2]
[378179419,1754767844137,-163.97,0.00020999,2]
[378179421,1754767844150,-1000.0,0.00020999,2]
[378179423,1754767844164,-615.51,0.00020999,2]
[378179451,1754767844452,-641574.92921484,0.00021,2]
[378179465,1754767845719,-888.0,0.00019706,3]
[378179466,1754767845729,-17035.18265028,0.00021,2]
[378179467,1754767845741,-2001.80500616,0.00021,2]
[378179468,1754767845860,509.00003,0.00017724,2]
[378179501,1754768282364,250.0,0.00015,2]
[378179502,1754768283517,300.0,0.00017,2]
[378179507,1754768325687,179.54,0.00013699,2]
[378179524,1754768606429,158.4798022,0.000176,7]
[378179560,1754769031746,-408.04417205,0.0001884,4]
[378179561,1754769031763,-91.95582795,0.0001884,4]
[378179562,1754769031776,-250.0,0.0001884,2]
[378179563,1754769031788,-1200.0,0.00018887,2]
[378179564,1754769031801,-150.0,0.00018888,2]
[378179565,1754769031814,-151.15903032,0.00018888,2]
[378179566,1754769031827,-150.0,0.00018888,2]
[378179567,1754769031841,-150.0,0.00018888,2]
[378179568,1754769031853,-150.0,0.00018888,2]
[378179569,1754769031866,-150.0,0.00018888,2]
[378179570,1754769031879,-150.0,0.00018888,2]
[378179571,1754769031892,-150.0,0.00018888,2]
[378179572,1754769031906,-150.0,0.00018888,2]
[378179573,1754769031919,-77.14192096,0.00018888,2]
[378179574,1754769031945,-72.85807904,0.00018888,2]
[378179575,1754769031958,-227.25891998,0.00018951,2]
[378179576,1754769031974,-285.74108002,0.00018951,2]
[378179577,1754769031986,-165.96,0.00018991,2]
[378179578,1754769032000,-589.87,0.00018999,2]
[378179579,1754769032013,-280.62,0.00019014,2]
[378179580,1754769032026,-2237.72,0.00019102,2]
[378179581,1754769032040,-1169.67,0.00019147,2]
[378179582,1754769032052,-218.65,0.00019147,2]
[378179583,1754769032065,-192.57,0.00019164,2]
[378179584,1754769032079,-150.0,0.00019164,2]
[378179585,1754769032093,-690.44,0.00019176,2]
[378179586,1754769032106,-1071.24,0.00019178,2]
[378179587,1754769032120,-1000.0,0.00019181,2]
[378179588,1754769032133,-200.0,0.00019192,2]
[378179589,1754769032146,-200.0,0.00019245,2]
[378179590,1754769032159,-589.87,0.00019273,3]
[378179591,1754769032172,-3258.32,0.0001938,2]
[378179593,1754769032185,-150.0,0.00019412,4]
[378179595,1754769032196,-150.0,0.00019412,4]
[378179597,1754769032208,-589.87,0.00019547,4]
[378179599,1754769032221,-150.0,0.00019587,4]
[378179601,1754769032233,-150.0,0.00019587,4]
[378179604,1754769032246,-338.43,0.00019654,2]
[378179606,1754769032259,-432.21,0.00019654,2]
[378179608,1754769032271,-432.21,0.00019665,2]
[378179610,1754769032283,-432.21,0.00019675,2]
[378179613,1754769032296,-432.21,0.00019686,2]
[378179615,1754769032309,-432.21,0.00019696,2]
[378179617,1754769032322,-432.21,0.00019706,2]
[378179620,1754769032336,-432.21,0.00019717,2]
[378179622,1754769032349,-432.21,0.00019727,2]
[378179624,1754769032363,-850.0,0.00019727,2]
[378179628,1754769032375,-432.21,0.00019737,2]
[378179630,1754769032386,-432.21,0.00019748,2]
[378179632,1754769032396,-432.21,0.00019758,2]
[378179634,1754769032406,-432.21,0.00019768,2]
[378179636,1754769032416,-151.0,0.00019777,2]
[378179638,1754769032426,-151.0,0.00019777,2]
[378179639,1754769032435,-151.0,0.00019777,2]
[378179640,1754769032446,-151.0,0.00019777,2]
[378179641,1754769032457,-151.0,0.00019777,2]
[378179643,1754769032468,-151.0,0.00019777,2]
[378179644,1754769032478,-151.0,0.00019777,2]
[378179645,1754769032489,-151.0,0.00019777,2]
[378179647,1754769032499,-432.21,0.00019779,2]
[378179649,1754769032509,-23900.0,0.00019789,2]
[378179651,1754769032520,-432.21,0.00019789,2]
[378179653,1754769032530,-432.21,0.00019799,2]
[378179655,1754769032541,-432.21,0.0001981,2]
[378179657,1754769032551,-432.21,0.0001982,2]
[378179659,1754769032562,-589.87,0.00019821,5]
[378179661,1754769032571,-432.21,0.00019831,2]
[378179663,1754769032581,-417.08,0.00019831,2]
[378179665,1754769032591,-432.21,0.00019841,2]
[378179666,1754769032601,-432.21,0.00019851,2]
[378179667,1754769032611,-359.76179104,0.00019886,2]
[378179668,1754769032621,-160.0,0.00019886,2]
[378179673,1754769033129,-760.54427199,0.00019886,2]
[378179674,1754769033173,-239.84119403,0.00019886,2]
[378179675,1754769033203,-600.0,0.00019921,2]
[378179676,1754769033213,-425.69,0.00019921,2]
[378179677,1754769033222,-150.0,0.00019937,4]
[378179678,1754769033232,-150.0,0.00019937,4]
[378179679,1754769033241,-150.0,0.00019937,4]
[378179680,1754769033250,-1958.76,0.00019938,2]
[378179681,1754769033260,-3441.23,0.00019988,2]
[378179682,1754769033270,-5679.45,0.0001999,2]
[378179683,1754769033279,-1000.0,0.0002,2]
[378179684,1754769033288,-250.0,0.00020007,2]
[378179685,1754769033298,-1082.93,0.00020028,2]
[378179686,1754769033308,-165.26,0.00020052,2]
[378179687,1754769033317,-589.87,0.00020095,6]
[378179688,1754769033326,-218.65,0.00020105,2]
[378179689,1754769033336,-179.54,0.00020187,2]
[378179690,1754769033345,-150.0,0.000202,2]
[378179691,1754769033355,-151.5,0.00020206,2]
[378179692,1754769033364,-150.0,0.0002027,2]
[378179693,1754769033374,-173.18,0.0002027,2]
[378179694,1754769033383,-150.0,0.0002027,2]
[378179695,1754769033392,-165.65,0.0002027,2]
[378179696,1754769033402,-276.5,0.0002027,2]
[378179697,1754769033411,-359.68,0.0002027,2]
[378179698,1754769033421,-92.10631255,0.0002027,2]
[378179699,1754769033471,-210.26368745,0.0002027,2]
[378179700,1754769033481,-165.65,0.0002027,2]
[378179701,1754769033490,-150.0,0.0002027,2]
[378179702,1754769033500,-359.68,0.0002027,2]
[378179703,1754769033510,-150.0,0.0002027,2]
[378179704,1754769033520,-173.18,0.0002027,2]
[378179705,1754769033529,-538.0,0.0002027,2]
[378179706,1754769033540,-150.0,0.0002027,2]
[378179707,1754769033549,-150.0,0.0002027,2]
[378179708,1754769033559,-150.0,0.0002027,2]
[378179709,1754769033568,-173.18,0.0002027,2]
[378179710,1754769033577,-150.0,0.0002027,2]
[378179711,1754769033586,-150.0,0.0002027,2]
[378179712,1754769033596,-150.0,0.0002027,2]
[378179713,1754769033606,-538.0,0.0002027,2]
[378179714,1754769033616,-173.18,0.0002027,2]
[378179715,1754769033625,-150.0,0.0002027,2]
[378179716,1754769033635,-150.0,0.0002027,2]
[378179717,1754769033645,-165.65,0.0002027,2]
[378179718,1754769033654,-359.68,0.0002027,2]
[378179719,1754769033664,-538.0,0.0002027,2]
[378179720,1754769033673,-150.0,0.0002027,2]
[378179721,1754769033683,-538.0,0.0002027,2]
[378179722,1754769033692,-173.18,0.0002027,2]
[378179723,1754769033703,-150.0,0.0002027,2]
[378179724,1754769033712,-173.18,0.0002027,2]
[378179725,1754769033722,-150.0,0.0002027,2]
[378179726,1754769033731,-359.68,0.0002027,2]
[378179727,1754769033742,-172.93,0.0002027,2]
[378179728,1754769033752,-150.0,0.00020287,4]
[378179729,1754769033761,-150.0,0.00020287,4]
[378179730,1754769033771,-589.87,0.00020369,7]